[Event "Titled Tuesday Blitz August 15 Late 2023"]
[White "Grebeniuk, Semen"]
[Black "Young_Catalan_Player09"]
[WhiteFideId "14117509"]
[WhiteElo "2526"]
[BlackElo "2345"]
[Result "1-0"]
[Round "8"]
[TimeControl "180+1"]
[Date "2023.08.15"]
[WhiteClock "0:00:25"]
[BlackClock "0:00:52"]
[Board "61"]

1. d4 {[%clk 0:03:00]}  d5 {[%clk 0:03:00]} 2. Bf4 {[%clk 0:03:00]}  Nf6 {[%clk 0:02:57]} 3. e3 {[%clk 0:03:01]}  c5 {[%clk 0:02:57]} 4. Nd2 {[%clk 0:03:01]}  Nc6 {[%clk 0:02:56]} 5. c3 {[%clk 0:03:01]}  e6 {[%clk 0:02:51]} 6. Ngf3 {[%clk 0:03:00]}  cxd4 {[%clk 0:02:51]} 7. exd4 {[%clk 0:03:00]}  Nh5 {[%clk 0:02:50]} 8. Be3 {[%clk 0:03:00]}  Bd6 {[%clk 0:02:50]} 9. Ne5 {[%clk 0:02:45]}  g6 {[%clk 0:02:40]} 10. Nxc6 {[%clk 0:02:31]}  bxc6 {[%clk 0:02:39]} 11. Nf3 {[%clk 0:02:23]}  O-O {[%clk 0:02:33]} 12. g3 {[%clk 0:02:17]}  f5 {[%clk 0:02:31]} 13. Be2 {[%clk 0:02:05]}  f4 {[%clk 0:02:28]} 14. Bd2 {[%clk 0:02:05]}  Nf6 {[%clk 0:02:19]} 15. O-O {[%clk 0:02:01]}  Ne4 {[%clk 0:02:16]} 16. Bd3 {[%clk 0:02:00]}  fxg3 {[%clk 0:02:12]} 17. fxg3 {[%clk 0:02:01]}  c5 {[%clk 0:02:08]} 18. Qe2 {[%clk 0:01:44]}  Bb7 {[%clk 0:02:05]} 19. Be3 {[%clk 0:01:39]}  Qe7 {[%clk 0:02:01]} 20. Ne5 {[%clk 0:01:32]}  Rxf1+ {[%clk 0:01:48]} 21. Rxf1 {[%clk 0:01:32]}  Rf8 {[%clk 0:01:49]} 22. Rxf8+ {[%clk 0:01:29]}  Qxf8 {[%clk 0:01:49]} 23. Bxe4 {[%clk 0:01:16]}  Bxe5 {[%clk 0:01:27]} 24. Bf3 {[%clk 0:01:07]}  cxd4 {[%clk 0:01:21]} 25. Bxd4 {[%clk 0:01:05]}  Bxd4+ {[%clk 0:01:21]} 26. cxd4 {[%clk 0:01:06]}  Qf6 {[%clk 0:01:19]} 27. Qe3 {[%clk 0:01:05]}  Kg7 {[%clk 0:01:19]} 28. h4 {[%clk 0:00:57]}  Bc6 {[%clk 0:01:18]} 29. Bg4 {[%clk 0:00:55]}  Bd7 {[%clk 0:01:16]} 30. h5 {[%clk 0:00:52]}  gxh5 {[%clk 0:01:09]} 31. Bxh5 {[%clk 0:00:51]}  Qf5 {[%clk 0:01:09]} 32. Qe5+ {[%clk 0:00:40]}  Qxe5 {[%clk 0:01:08]} 33. dxe5 {[%clk 0:00:40]}  Kh6 {[%clk 0:01:06]} 34. Bg4 {[%clk 0:00:39]}  Kg5 {[%clk 0:01:06]} 35. Bh3 {[%clk 0:00:39]}  h5 {[%clk 0:01:03]} 36. Kf2 {[%clk 0:00:39]}  h4 {[%clk 0:01:03]} 37. gxh4+ {[%clk 0:00:40]}  Kxh4 {[%clk 0:01:04]} 38. Bf1 {[%clk 0:00:35]}  Kg4 {[%clk 0:01:03]} 39. Ke3 {[%clk 0:00:35]}  Kf5 {[%clk 0:01:01]} 40. Kd4 {[%clk 0:00:36]}  Kf4 {[%clk 0:01:01]} 41. b4 {[%clk 0:00:32]}  Bc8 {[%clk 0:01:01]} 42. Bd3 {[%clk 0:00:27]}  Bd7 {[%clk 0:01:00]} 43. b5 {[%clk 0:00:25]}  Kf3 {[%clk 0:00:59]} 44. a4 {[%clk 0:00:25]}  Kf2 {[%clk 0:00:57]} 45. a5 {[%clk 0:00:26]}  Bc8 {[%clk 0:00:56]} 46. b6 {[%clk 0:00:23]}  axb6 {[%clk 0:00:55]} 47. axb6 {[%clk 0:00:23]}  Bb7 {[%clk 0:00:55]} 48. Bb5 {[%clk 0:00:24]}  Kf3 {[%clk 0:00:55]} 49. Bd7 {[%clk 0:00:24]}  Kf4 {[%clk 0:00:52]} 50. Bxe6 {[%clk 0:00:25]} 1-0


[Site "https://www.chess.com"]

[Event "Titled Tuesday Blitz August 15 Late 2023"]
[White "Goltsev, Dmitry"]
[Black "Merino Garcia, Rafael II"]
[WhiteFideId "24176710"]
[BlackFideId "2209128"]
[WhiteElo "2629"]
[BlackElo "2489"]
[Result "1-0"]
[Round "8"]
[TimeControl "180+1"]
[Date "2023.08.15"]
[WhiteClock "0:02:42"]
[BlackClock "0:02:00"]
[Board "66"]

1. e4 {[%clk 0:02:59]}  d6 {[%clk 0:02:57]} 2. Nf3 {[%clk 0:02:59]}  Nd7 {[%clk 0:02:57]} 3. Bc4 {[%clk 0:02:59]}  e6 {[%clk 0:02:57]} 4. Nc3 {[%clk 0:02:59]}  g6 {[%clk 0:02:57]} 5. h4 {[%clk 0:02:58]}  h6 {[%clk 0:02:56]} 6. d4 {[%clk 0:02:57]}  Bg7 {[%clk 0:02:56]} 7. Be3 {[%clk 0:02:56]}  a6 {[%clk 0:02:56]} 8. a4 {[%clk 0:02:55]}  b6 {[%clk 0:02:56]} 9. Qd2 {[%clk 0:02:53]}  Bb7 {[%clk 0:02:56]} 10. O-O-O {[%clk 0:02:49]}  Ne7 {[%clk 0:02:50]} 11. h5 {[%clk 0:02:49]}  g5 {[%clk 0:02:49]} 12. Nxg5 {[%clk 0:02:49]}  hxg5 {[%clk 0:02:49]} 13. Bxg5 {[%clk 0:02:50]}  f6 {[%clk 0:02:26]} 14. h6 {[%clk 0:02:50]}  Bf8 {[%clk 0:02:25]} 15. Qe2 {[%clk 0:02:42]}  fxg5 {[%clk 0:01:59]} 16. Qh5+ {[%clk 0:02:41]}  Ng6 {[%clk 0:01:59]} 17. Qxg6+ {[%clk 0:02:41]}  Ke7 {[%clk 0:02:00]} 18. Qxe6# {[%clk 0:02:42]} 1-0


[Site "https://www.chess.com"]

[Event "Titled Tuesday Blitz August 15 Late 2023"]
[White "Pinheiro, Iung Alicio de O."]
[Black "brm72"]
[WhiteFideId "2104350"]
[WhiteElo "2592"]
[BlackElo "2477"]
[Result "0-1"]
[Round "8"]
[TimeControl "180+1"]
[Date "2023.08.15"]
[WhiteClock "0:00:00"]
[BlackClock "0:00:10"]
[Board "69"]

1. e4 {[%clk 0:02:56]}  c5 {[%clk 0:02:59]} 2. Nf3 {[%clk 0:02:55]}  Nc6 {[%clk 0:03:00]} 3. b4 {[%clk 0:02:52]}  d5 {[%clk 0:02:53]} 4. exd5 {[%clk 0:02:48]}  Qxd5 {[%clk 0:02:54]} 5. Nc3 {[%clk 0:02:42]}  Qe6+ {[%clk 0:02:50]} 6. Be2 {[%clk 0:02:40]}  cxb4 {[%clk 0:02:36]} 7. Nb5 {[%clk 0:02:40]}  Qd7 {[%clk 0:02:36]} 8. a3 {[%clk 0:02:38]}  e5 {[%clk 0:02:27]} 9. axb4 {[%clk 0:02:29]}  Bxb4 {[%clk 0:02:28]} 10. Bb2 {[%clk 0:02:24]}  Nge7 {[%clk 0:02:08]} 11. Nxe5 {[%clk 0:02:10]}  Nxe5 {[%clk 0:02:09]} 12. Bxe5 {[%clk 0:02:09]}  O-O {[%clk 0:02:09]} 13. Nc7 {[%clk 0:02:02]}  Nc6 {[%clk 0:02:07]} 14. Bg3 {[%clk 0:01:58]}  Rb8 {[%clk 0:02:03]} 15. Nb5 {[%clk 0:01:57]}  Ra8 {[%clk 0:02:01]} 16. c3 {[%clk 0:01:55]}  Be7 {[%clk 0:01:57]} 17. O-O {[%clk 0:01:53]}  a6 {[%clk 0:01:53]} 18. d4 {[%clk 0:01:48]}  b6 {[%clk 0:01:18]} 19. Nc7 {[%clk 0:01:18]}  Ra7 {[%clk 0:01:14]} 20. Nxa6 {[%clk 0:01:13]}  Bb7 {[%clk 0:00:59]} 21. Nc7 {[%clk 0:00:44]}  Rc8 {[%clk 0:00:44]} 22. Bg4 {[%clk 0:00:23]}  f5 {[%clk 0:00:42]} 23. Qb3+ {[%clk 0:00:22]}  Kh8 {[%clk 0:00:40]} 24. Rxa7 {[%clk 0:00:23]}  Nxa7 {[%clk 0:00:37]} 25. Qxb6 {[%clk 0:00:23]}  fxg4 {[%clk 0:00:32]} 26. Qxb7 {[%clk 0:00:20]}  Nc6 {[%clk 0:00:29]} 27. Re1 {[%clk 0:00:19]}  Bf6 {[%clk 0:00:23]} 28. d5 {[%clk 0:00:16]}  Ne7 {[%clk 0:00:18]} 29. c4 {[%clk 0:00:15]}  h5 {[%clk 0:00:18]} 30. Qb6 {[%clk 0:00:13]}  h4 {[%clk 0:00:17]} 31. Bf4 {[%clk 0:00:12]}  Ng6 {[%clk 0:00:17]} 32. Ne6 {[%clk 0:00:11]}  Rxc4 {[%clk 0:00:15]} 33. Be3 {[%clk 0:00:08]}  Kh7 {[%clk 0:00:13]} 34. Qa6 {[%clk 0:00:02]}  Qxd5 {[%clk 0:00:12]} 35. Nf4 {[%clk 0:00:02]}  Nxf4 {[%clk 0:00:12]} 36. Bxf4 {[%clk 0:00:03]}  Rxf4 {[%clk 0:00:12]} 37. Qa3 {[%clk 0:00:02]}  h3 {[%clk 0:00:11]} 38. gxh3 {[%clk 0:00:00]}  Rf3 {[%clk 0:00:10]} 0-1


[Site "https://www.chess.com"]

[Event "Titled Tuesday Blitz August 15 Late 2023"]
[White "Arencibia Monduy, Antonio"]
[Black "Isajevsky, Anton"]
[WhiteFideId "3507939"]
[BlackFideId "4142500"]
[WhiteElo "2472"]
[BlackElo "2588"]
[Result "0-1"]
[Round "8"]
[TimeControl "180+1"]
[Date "2023.08.15"]
[WhiteClock "0:00:00"]
[BlackClock "0:00:02"]
[Board "70"]

1. e4 {[%clk 0:03:00]}  c5 {[%clk 0:02:59]} 2. Nf3 {[%clk 0:03:00]}  d6 {[%clk 0:02:59]} 3. d3 {[%clk 0:03:00]}  g6 {[%clk 0:02:58]} 4. g3 {[%clk 0:03:00]}  Bg7 {[%clk 0:02:59]} 5. Bg2 {[%clk 0:03:00]}  Nc6 {[%clk 0:02:59]} 6. O-O {[%clk 0:03:00]}  Rb8 {[%clk 0:02:45]} 7. a4 {[%clk 0:02:59]}  e5 {[%clk 0:02:41]} 8. c3 {[%clk 0:02:58]}  Nge7 {[%clk 0:02:41]} 9. Na3 {[%clk 0:02:53]}  O-O {[%clk 0:02:40]} 10. Nc4 {[%clk 0:02:47]}  h6 {[%clk 0:02:35]} 11. Re1 {[%clk 0:02:28]}  Be6 {[%clk 0:02:32]} 12. Ne3 {[%clk 0:02:28]}  Qd7 {[%clk 0:02:13]} 13. c4 {[%clk 0:02:14]}  f5 {[%clk 0:02:05]} 14. exf5 {[%clk 0:02:08]}  gxf5 {[%clk 0:02:00]} 15. Nh4 {[%clk 0:02:07]}  Nd4 {[%clk 0:01:35]} 16. Nd5 {[%clk 0:02:03]}  Nxd5 {[%clk 0:01:31]} 17. cxd5 {[%clk 0:02:02]}  Bf7 {[%clk 0:01:31]} 18. Be3 {[%clk 0:01:58]}  Kh7 {[%clk 0:00:46]} 19. f4 {[%clk 0:01:58]}  Bf6 {[%clk 0:00:34]} 20. Nf3 {[%clk 0:01:58]}  Rbe8 {[%clk 0:00:30]} 21. fxe5 {[%clk 0:01:56]}  dxe5 {[%clk 0:00:23]} 22. Rc1 {[%clk 0:01:28]}  b6 {[%clk 0:00:20]} 23. Nxd4 {[%clk 0:00:58]}  cxd4 {[%clk 0:00:18]} 24. Bd2 {[%clk 0:00:58]}  Bxd5 {[%clk 0:00:17]} 25. Bxd5 {[%clk 0:00:57]}  Qxd5 {[%clk 0:00:18]} 26. Qh5 {[%clk 0:00:57]}  Bg7 {[%clk 0:00:16]} 27. Rc7 {[%clk 0:00:55]}  Qe6 {[%clk 0:00:11]} 28. Rxe5 {[%clk 0:00:33]}  Qxe5 {[%clk 0:00:09]} 29. Qxh6+ {[%clk 0:00:33]}  Kg8 {[%clk 0:00:08]} 30. Qc6 {[%clk 0:00:21]}  Qe6 {[%clk 0:00:06]} 31. Qf3 {[%clk 0:00:15]}  Rf7 {[%clk 0:00:06]} 32. Rc6 {[%clk 0:00:13]}  Qe2 {[%clk 0:00:06]} 33. Qf4 {[%clk 0:00:12]}  Qxd3 {[%clk 0:00:06]} 34. Qg5 {[%clk 0:00:07]}  f4 {[%clk 0:00:02]} 35. gxf4 {[%clk 0:00:00]}  Qxd2 {[%clk 0:00:02]} 0-1


[Site "https://www.chess.com"]

[Event "Titled Tuesday Blitz August 15 Late 2023"]
[White "Bazilius, Augustinas"]
[Black "Vovk, Orest"]
[WhiteFideId "12832251"]
[BlackFideId "14113490"]
[WhiteElo "2474"]
[BlackElo "2564"]
[Result "1-0"]
[Round "8"]
[TimeControl "180+1"]
[Date "2023.08.15"]
[WhiteClock "0:00:36"]
[BlackClock "0:00:00"]
[Board "71"]

1. e4 {[%clk 0:02:59]}  g6 {[%clk 0:02:59]} 2. g3 {[%clk 0:02:54]}  Nf6 {[%clk 0:02:59]} 3. Bg2 {[%clk 0:02:53]}  d5 {[%clk 0:02:58]} 4. exd5 {[%clk 0:02:50]}  Nxd5 {[%clk 0:02:57]} 5. d4 {[%clk 0:02:50]}  Bg7 {[%clk 0:02:57]} 6. Ne2 {[%clk 0:02:49]}  O-O {[%clk 0:02:56]} 7. c4 {[%clk 0:02:46]}  Nb4 {[%clk 0:02:53]} 8. a3 {[%clk 0:02:42]}  N4a6 {[%clk 0:02:53]} 9. b4 {[%clk 0:02:36]}  c5 {[%clk 0:02:50]} 10. bxc5 {[%clk 0:02:29]}  Nxc5 {[%clk 0:02:50]} 11. Nbc3 {[%clk 0:02:27]}  Ne6 {[%clk 0:02:45]} 12. d5 {[%clk 0:02:25]}  Nc5 {[%clk 0:02:38]} 13. Be3 {[%clk 0:02:25]}  Nba6 {[%clk 0:02:35]} 14. O-O {[%clk 0:02:22]}  Bg4 {[%clk 0:02:34]} 15. h3 {[%clk 0:02:21]}  Bxc3 {[%clk 0:02:32]} 16. hxg4 {[%clk 0:02:19]}  Bxa1 {[%clk 0:02:32]} 17. Qxa1 {[%clk 0:02:17]}  f6 {[%clk 0:02:32]} 18. g5 {[%clk 0:02:13]}  Qd7 {[%clk 0:02:28]} 19. Nd4 {[%clk 0:02:10]}  Rae8 {[%clk 0:02:17]} 20. Nb5 {[%clk 0:02:01]}  b6 {[%clk 0:01:59]} 21. d6 {[%clk 0:01:59]}  e5 {[%clk 0:01:51]} 22. gxf6 {[%clk 0:01:58]}  Rxf6 {[%clk 0:01:51]} 23. Bg5 {[%clk 0:01:57]}  Rf5 {[%clk 0:01:43]} 24. Bh3 {[%clk 0:01:56]}  Re6 {[%clk 0:01:37]} 25. Be7 {[%clk 0:01:52]}  Nb8 {[%clk 0:00:57]} 26. Bxf5 {[%clk 0:01:48]}  gxf5 {[%clk 0:00:57]} 27. Qd1 {[%clk 0:01:45]}  Nc6 {[%clk 0:00:54]} 28. Nc7 {[%clk 0:01:41]}  Nd4 {[%clk 0:00:23]} 29. Nxe6 {[%clk 0:01:39]}  Ncxe6 {[%clk 0:00:19]} 30. Qh5 {[%clk 0:01:34]}  Qc6 {[%clk 0:00:17]} 31. f4 {[%clk 0:01:07]}  e4 {[%clk 0:00:11]} 32. Bf6 {[%clk 0:01:07]}  e3 {[%clk 0:00:05]} 33. Bxd4 {[%clk 0:00:57]}  Nxd4 {[%clk 0:00:01]} 34. Qg5+ {[%clk 0:00:56]}  Kf7 {[%clk 0:00:02]} 35. Qe7+ {[%clk 0:00:55]}  Kg6 {[%clk 0:00:02]} 36. Qg5+ {[%clk 0:00:40]}  Kf7 {[%clk 0:00:02]} 37. Qe7+ {[%clk 0:00:41]}  Kg6 {[%clk 0:00:02]} 38. Qxe3 {[%clk 0:00:42]}  Qxd6 {[%clk 0:00:00]} 39. Qe5 {[%clk 0:00:36]} 1-0


[Site "https://www.chess.com"]

[Event "Titled Tuesday Blitz August 15 Late 2023"]
[White "Przybylski, Wojciech"]
[Black "Jakic, Ivan"]
[WhiteFideId "1117599"]
[BlackFideId "14504901"]
[WhiteElo "2560"]
[BlackElo "2460"]
[Result "1-0"]
[Round "8"]
[TimeControl "180+1"]
[Date "2023.08.15"]
[WhiteClock "0:00:10"]
[BlackClock "0:01:07"]
[Board "72"]

1. e4 {[%clk 0:03:00]}  c5 {[%clk 0:02:58]} 2. Nf3 {[%clk 0:03:00]}  d6 {[%clk 0:02:59]} 3. Bb5+ {[%clk 0:02:59]}  Nc6 {[%clk 0:02:57]} 4. O-O {[%clk 0:02:58]}  Bd7 {[%clk 0:02:56]} 5. Re1 {[%clk 0:02:58]}  Nf6 {[%clk 0:02:56]} 6. c3 {[%clk 0:02:58]}  a6 {[%clk 0:02:55]} 7. Bc4 {[%clk 0:02:57]}  e6 {[%clk 0:02:55]} 8. a4 {[%clk 0:02:57]}  Be7 {[%clk 0:02:55]} 9. d3 {[%clk 0:02:56]}  O-O {[%clk 0:02:54]} 10. Bg5 {[%clk 0:02:56]}  h6 {[%clk 0:02:52]} 11. Bh4 {[%clk 0:02:54]}  Rb8 {[%clk 0:02:53]} 12. Bb3 {[%clk 0:02:50]}  b5 {[%clk 0:02:53]} 13. Nbd2 {[%clk 0:02:49]}  e5 {[%clk 0:02:49]} 14. axb5 {[%clk 0:02:46]}  axb5 {[%clk 0:02:49]} 15. Nf1 {[%clk 0:02:45]}  Be6 {[%clk 0:02:47]} 16. Ne3 {[%clk 0:02:43]}  Qd7 {[%clk 0:02:44]} 17. h3 {[%clk 0:02:43]}  Ra8 {[%clk 0:02:39]} 18. Bc2 {[%clk 0:02:34]}  d5 {[%clk 0:02:35]} 19. Bxf6 {[%clk 0:02:29]}  Bxf6 {[%clk 0:02:36]} 20. exd5 {[%clk 0:02:28]}  Bxd5 {[%clk 0:02:36]} 21. Nxd5 {[%clk 0:02:28]}  Qxd5 {[%clk 0:02:37]} 22. Qe2 {[%clk 0:02:26]}  Rxa1 {[%clk 0:02:36]} 23. Rxa1 {[%clk 0:02:25]}  b4 {[%clk 0:02:36]} 24. Nd2 {[%clk 0:02:23]}  bxc3 {[%clk 0:02:36]} 25. bxc3 {[%clk 0:02:22]}  g6 {[%clk 0:02:30]} 26. Bb3 {[%clk 0:02:19]}  Qd7 {[%clk 0:02:26]} 27. Ne4 {[%clk 0:02:12]}  Be7 {[%clk 0:02:26]} 28. Qf3 {[%clk 0:02:08]}  Kg7 {[%clk 0:02:25]} 29. Ra6 {[%clk 0:02:01]}  Nb8 {[%clk 0:02:23]} 30. Ra1 {[%clk 0:01:43]}  Qb7 {[%clk 0:02:22]} 31. Bc4 {[%clk 0:01:36]}  f5 {[%clk 0:02:21]} 32. Nd2 {[%clk 0:01:17]}  Qxf3 {[%clk 0:02:09]} 33. Nxf3 {[%clk 0:01:16]}  Bf6 {[%clk 0:02:08]} 34. Ra7+ {[%clk 0:01:14]}  Kh8 {[%clk 0:02:08]} 35. Rc7 {[%clk 0:01:03]}  e4 {[%clk 0:02:07]} 36. dxe4 {[%clk 0:01:02]}  fxe4 {[%clk 0:02:08]} 37. Nd2 {[%clk 0:01:00]}  Re8 {[%clk 0:02:00]} 38. Bf7 {[%clk 0:00:53]}  Re7 {[%clk 0:01:58]} 39. Rxe7 {[%clk 0:00:47]}  Bxe7 {[%clk 0:01:58]} 40. Bxg6 {[%clk 0:00:46]}  e3 {[%clk 0:01:57]} 41. fxe3 {[%clk 0:00:46]}  Nc6 {[%clk 0:01:58]} 42. Be4 {[%clk 0:00:42]}  Ne5 {[%clk 0:01:58]} 43. Kf2 {[%clk 0:00:42]}  Bf6 {[%clk 0:01:58]} 44. Ke2 {[%clk 0:00:41]}  Kg7 {[%clk 0:01:58]} 45. c4 {[%clk 0:00:40]}  Bg5 {[%clk 0:01:55]} 46. Bd5 {[%clk 0:00:39]}  Be7 {[%clk 0:01:55]} 47. Ne4 {[%clk 0:00:38]}  Ng6 {[%clk 0:01:54]} 48. Nd2 {[%clk 0:00:36]}  Ne5 {[%clk 0:01:54]} 49. Nf3 {[%clk 0:00:37]}  Ng6 {[%clk 0:01:53]} 50. g3 {[%clk 0:00:35]}  Kf6 {[%clk 0:01:53]} 51. h4 {[%clk 0:00:34]}  Ne5 {[%clk 0:01:54]} 52. Nd2 {[%clk 0:00:32]}  Ng4 {[%clk 0:01:49]} 53. Kf3 {[%clk 0:00:27]}  Ne5+ {[%clk 0:01:47]} 54. Ke4 {[%clk 0:00:27]}  Ng4 {[%clk 0:01:47]} 55. Kf3 {[%clk 0:00:26]}  Ne5+ {[%clk 0:01:47]} 56. Kf4 {[%clk 0:00:26]}  Nd3+ {[%clk 0:01:47]} 57. Ke4 {[%clk 0:00:24]}  Ne5 {[%clk 0:01:47]} 58. Nb3 {[%clk 0:00:20]}  Ng4 {[%clk 0:01:47]} 59. Kf4 {[%clk 0:00:16]}  Ne5 {[%clk 0:01:45]} 60. g4 {[%clk 0:00:15]}  Ng6+ {[%clk 0:01:44]} 61. Kg3 {[%clk 0:00:15]}  Bd6+ {[%clk 0:01:45]} 62. Kh3 {[%clk 0:00:14]}  Ke5 {[%clk 0:01:37]} 63. Nd2 {[%clk 0:00:14]}  Kf6 {[%clk 0:01:35]} 64. Ne4+ {[%clk 0:00:13]}  Ke5 {[%clk 0:01:34]} 65. h5 {[%clk 0:00:13]}  Ne7 {[%clk 0:01:31]} 66. Nxd6 {[%clk 0:00:11]}  Kxd6 {[%clk 0:01:32]} 67. g5 {[%clk 0:00:12]}  Nf5 {[%clk 0:01:18]} 68. gxh6 {[%clk 0:00:04]}  Nxh6 {[%clk 0:01:16]} 69. Kh4 {[%clk 0:00:04]}  Nf5+ {[%clk 0:01:05]} 70. Kg5 {[%clk 0:00:04]}  Ke5 {[%clk 0:01:05]} 71. h6 {[%clk 0:00:03]}  Nxe3 {[%clk 0:01:00]} 72. h7 {[%clk 0:00:03]}  Kd4 {[%clk 0:01:00]} 73. h8=Q+ {[%clk 0:00:03]}  Kd3 {[%clk 0:01:00]} 74. Qh7+ {[%clk 0:00:03]}  Kd2 {[%clk 0:01:01]} 75. Qh2+ {[%clk 0:00:03]}  Kd3 {[%clk 0:01:01]} 76. Qg3 {[%clk 0:00:03]}  Kd4 {[%clk 0:01:02]} 77. Qf4+ {[%clk 0:00:03]}  Kd3 {[%clk 0:01:02]} 78. Qe4+ {[%clk 0:00:03]}  Kd2 {[%clk 0:01:02]} 79. Kf4 {[%clk 0:00:03]}  Nc2 {[%clk 0:01:02]} 80. Qf3 {[%clk 0:00:03]}  Nd4 {[%clk 0:01:02]} 81. Qf2+ {[%clk 0:00:03]}  Kd3 {[%clk 0:01:02]} 82. Be4+ {[%clk 0:00:03]}  Kc3 {[%clk 0:01:02]} 83. Qf1 {[%clk 0:00:03]}  Nb3 {[%clk 0:01:01]} 84. Ke5 {[%clk 0:00:03]}  Nd4 {[%clk 0:01:00]} 85. Qd3+ {[%clk 0:00:03]}  Kb4 {[%clk 0:01:00]} 86. Kd5 {[%clk 0:00:03]}  Nb3 {[%clk 0:01:00]} 87. Qb1 {[%clk 0:00:03]}  Kc3 {[%clk 0:01:00]} 88. Qxb3+ {[%clk 0:00:03]}  Kxb3 {[%clk 0:01:00]} 89. Kxc5 {[%clk 0:00:04]}  Ka4 {[%clk 0:01:01]} 90. Bd5 {[%clk 0:00:05]}  Ka5 {[%clk 0:01:01]} 91. Kc6 {[%clk 0:00:06]}  Ka6 {[%clk 0:01:02]} 92. c5 {[%clk 0:00:07]}  Ka7 {[%clk 0:01:03]} 93. Kc7 {[%clk 0:00:07]}  Ka6 {[%clk 0:01:03]} 94. c6 {[%clk 0:00:08]}  Ka7 {[%clk 0:01:04]} 95. Be6 {[%clk 0:00:08]}  Ka6 {[%clk 0:01:05]} 96. Kd7 {[%clk 0:00:08]}  Ka7 {[%clk 0:01:06]} 97. c7 {[%clk 0:00:09]}  Kb6 {[%clk 0:01:06]} 98. c8=Q {[%clk 0:00:09]}  Ka7 {[%clk 0:01:07]} 99. Qc7+ {[%clk 0:00:09]}  Ka8 {[%clk 0:01:07]} 100. Bd5# {[%clk 0:00:10]} 1-0


[Site "https://www.chess.com"]

[Event "Titled Tuesday Blitz August 15 Late 2023"]
[White "Deng, Henry"]
[Black "ciroreva-CB"]
[WhiteFideId "30965454"]
[WhiteElo "2536"]
[BlackElo "2353"]
[Result "1-0"]
[Round "8"]
[TimeControl "180+1"]
[Date "2023.08.15"]
[WhiteClock "0:00:20"]
[BlackClock "0:00:00"]
[Board "75"]

1. e4 {[%clk 0:03:00]}  c5 {[%clk 0:02:57]} 2. Nc3 {[%clk 0:02:58]}  Nc6 {[%clk 0:02:56]} 3. Bb5 {[%clk 0:02:59]}  Nd4 {[%clk 0:02:56]} 4. Nf3 {[%clk 0:02:59]}  e6 {[%clk 0:02:56]} 5. O-O {[%clk 0:03:00]}  a6 {[%clk 0:02:56]} 6. Bd3 {[%clk 0:03:01]}  Nc6 {[%clk 0:02:56]} 7. a3 {[%clk 0:03:01]}  b5 {[%clk 0:02:42]} 8. Be2 {[%clk 0:03:00]}  Nd4 {[%clk 0:02:40]} 9. d3 {[%clk 0:03:00]}  Ne7 {[%clk 0:02:35]} 10. Nxd4 {[%clk 0:02:49]}  cxd4 {[%clk 0:02:35]} 11. Nb1 {[%clk 0:02:50]}  d5 {[%clk 0:02:35]} 12. exd5 {[%clk 0:02:45]}  Nxd5 {[%clk 0:02:36]} 13. Bf3 {[%clk 0:02:45]}  Bb7 {[%clk 0:02:33]} 14. Nd2 {[%clk 0:02:44]}  Bd6 {[%clk 0:01:57]} 15. g3 {[%clk 0:02:33]}  O-O {[%clk 0:01:55]} 16. Nb3 {[%clk 0:02:33]}  Qb6 {[%clk 0:01:54]} 17. a4 {[%clk 0:02:21]}  Rac8 {[%clk 0:01:42]} 18. Bd2 {[%clk 0:02:13]}  e5 {[%clk 0:01:28]} 19. axb5 {[%clk 0:01:54]}  axb5 {[%clk 0:01:27]} 20. Bg2 {[%clk 0:01:51]}  Nb4 {[%clk 0:01:14]} 21. Bxb4 {[%clk 0:01:45]}  Bxb4 {[%clk 0:01:15]} 22. Bxb7 {[%clk 0:01:28]}  Qxb7 {[%clk 0:01:14]} 23. Nd2 {[%clk 0:01:29]}  Qc6 {[%clk 0:01:04]} 24. Rc1 {[%clk 0:01:19]}  Ra8 {[%clk 0:01:02]} 25. Qf3 {[%clk 0:01:12]}  Rfc8 {[%clk 0:00:50]} 26. Ne4 {[%clk 0:00:58]}  Ra2 {[%clk 0:00:42]} 27. c3 {[%clk 0:00:58]}  dxc3 {[%clk 0:00:21]} 28. bxc3 {[%clk 0:00:59]}  Be7 {[%clk 0:00:21]} 29. Rb1 {[%clk 0:00:54]}  g6 {[%clk 0:00:19]} 30. Qd1 {[%clk 0:00:41]}  Kg7 {[%clk 0:00:16]} 31. Qb3 {[%clk 0:00:40]}  Ra5 {[%clk 0:00:12]} 32. Rfc1 {[%clk 0:00:34]}  f5 {[%clk 0:00:11]} 33. Nd2 {[%clk 0:00:35]}  Ra3 {[%clk 0:00:10]} 34. Qxb5 {[%clk 0:00:31]}  Qxb5 {[%clk 0:00:11]} 35. Rxb5 {[%clk 0:00:31]}  Raxc3 {[%clk 0:00:11]} 36. Rxc3 {[%clk 0:00:31]}  Rxc3 {[%clk 0:00:11]} 37. Rxe5 {[%clk 0:00:32]}  Kf6 {[%clk 0:00:11]} 38. Rd5 {[%clk 0:00:29]}  Bb4 {[%clk 0:00:09]} 39. Nf3 {[%clk 0:00:28]}  g5 {[%clk 0:00:08]} 40. Kg2 {[%clk 0:00:23]}  g4 {[%clk 0:00:08]} 41. Nh4 {[%clk 0:00:22]}  Ke6 {[%clk 0:00:06]} 42. Rxf5 {[%clk 0:00:20]}  Rxd3 {[%clk 0:00:06]} 43. Rf4 {[%clk 0:00:21]}  Bc5 {[%clk 0:00:07]} 44. Rxg4 {[%clk 0:00:21]}  Rd2 {[%clk 0:00:07]} 45. Rf4 {[%clk 0:00:21]}  Ke5 {[%clk 0:00:08]} 46. Rf3 {[%clk 0:00:22]}  h5 {[%clk 0:00:07]} 47. Ng6+ {[%clk 0:00:21]}  Ke4 {[%clk 0:00:07]} 48. h4 {[%clk 0:00:21]}  Ra2 {[%clk 0:00:05]} 49. Nf4 {[%clk 0:00:21]}  Rb2 {[%clk 0:00:04]} 50. Nd3 {[%clk 0:00:20]}  Rb3 {[%clk 0:00:00]} 51. Nxc5+ {[%clk 0:00:20]} 1-0


[Site "https://www.chess.com"]